{"text_format":"1","workbook":"xlsx","n_sheets":7,"sheets":["DATA","1","2","3","4","5","6"],"not_rendered":{"charts":0,"images":0,"macros":1,"external_links":0,"defined_names":1,"comments":0,"pivot_tables":0},"unopened":[],"bounds":{"document_bytes":16777216,"sheet_cells":100000,"rows_first":2000,"rows_last":500,"rows_between":2000,"halvings":0,"cell_chars":16384,"cell_head_chars":4096},"cells_cut":0,"cells_raw":0,"read":"whole","date_system":"1900"}

{"sheet":"DATA","index":0,"n_rows":27,"n_cols":27,"rows_kept":27,"cut":false,"hidden":false,"merged":[]}
[null,null,null,null,null,null,null,null,null,null,null,null,null,null,null,null,null,null,null,null,null,null,null,null,null,null,"الترحيل يعتمد على عمود 27"]
[]
["ت","رقم الفاتورة","رقم الحساب","المورد",null,"","","","","","","","","","","","","","","","","","","","","","اسم الزبون"]
[{"$f":"IF(D4=\"\",\"\",SUBTOTAL(3,$D$4:D4))","v":1},5001,1010,"مصطفى1",null,null,null,null,null,null,null,null,null,null,null,null,null,null,null,null,null,null,null,null,null,null,"محمد"]
[{"$f":"IF(D5=\"\",\"\",SUBTOTAL(3,$D$4:D5))","v":2},5002,1015,"مصطفى2",null,null,null,null,null,null,null,null,null,null,null,null,null,null,null,null,null,null,null,null,null,null,"محمد"]
[{"$f":"IF(D6=\"\",\"\",SUBTOTAL(3,$D$4:D6))","v":3},5003,1020,"مصطفى3",null,null,null,null,null,null,null,null,null,null,null,null,null,null,null,null,null,null,null,null,null,null,"طارق"]
[{"$f":"IF(D7=\"\",\"\",SUBTOTAL(3,$D$4:D7))","v":4},5004,1025,"مصطفى4",null,null,null,null,null,null,null,null,null,null,null,null,null,null,null,null,null,null,null,null,null,null,"عبد الله"]
[{"$f":"IF(D8=\"\",\"\",SUBTOTAL(3,$D$4:D8))","v":5},5005,1030,"مصطفى5",null,null,null,null,null,null,null,null,null,null,null,null,null,null,null,null,null,null,null,null,null,null,"مصطفى"]
[{"$f":"IF(D9=\"\",\"\",SUBTOTAL(3,$D$4:D9))","v":6},5006,1035,"مصطفى6",null,null,null,null,null,null,null,null,null,null,null,null,null,null,null,null,null,null,null,null,null,null,"حسين"]
[{"$f":"IF(D10=\"\",\"\",SUBTOTAL(3,$D$4:D10))","v":7},5007,1040,"مصطفى1",null,null,null,null,null,null,null,null,null,null,null,null,null,null,null,null,null,null,null,null,null,null,"عدنان"]
[{"$f":"IF(D11=\"\",\"\",SUBTOTAL(3,$D$4:D11))","v":8},5008,1045,"مصطفى2",null,null,null,null,null,null,null,null,null,null,null,null,null,null,null,null,null,null,null,null,null,null,"محمد"]
[{"$f":"IF(D12=\"\",\"\",SUBTOTAL(3,$D$4:D12))","v":9},5009,1050,"مصطفى3",null,null,null,null,null,null,null,null,null,null,null,null,null,null,null,null,null,null,null,null,null,null,"طارق"]
[{"$f":"IF(D13=\"\",\"\",SUBTOTAL(3,$D$4:D13))","v":10},5010,1055,"مصطفى4",null,null,null,null,null,null,null,null,null,null,null,null,null,null,null,null,null,null,null,null,null,null,"عبد الله"]
[{"$f":"IF(D14=\"\",\"\",SUBTOTAL(3,$D$4:D14))","v":11},5011,1060,"مصطفى5",null,null,null,null,null,null,null,null,null,null,null,null,null,null,null,null,null,null,null,null,null,null,"مصطفى"]
[{"$f":"IF(D15=\"\",\"\",SUBTOTAL(3,$D$4:D15))","v":12},5012,1065,"مصطفى6",null,null,null,null,null,null,null,null,null,null,null,null,null,null,null,null,null,null,null,null,null,null,"حسين"]
[{"$f":"IF(D16=\"\",\"\",SUBTOTAL(3,$D$4:D16))","v":13},5013,1070,"مصطفى1",null,null,null,null,null,null,null,null,null,null,null,null,null,null,null,null,null,null,null,null,null,null,"عدنان"]
[{"$f":"IF(D17=\"\",\"\",SUBTOTAL(3,$D$4:D17))","v":14},5014,1075,"مصطفى2",null,null,null,null,null,null,null,null,null,null,null,null,null,null,null,null,null,null,null,null,null,null,"محمد"]
[{"$f":"IF(D18=\"\",\"\",SUBTOTAL(3,$D$4:D18))","v":15},5015,1080,"مصطفى3",null,null,null,null,null,null,null,null,null,null,null,null,null,null,null,null,null,null,null,null,null,null,"طارق"]
[{"$f":"IF(D19=\"\",\"\",SUBTOTAL(3,$D$4:D19))","v":16},5016,1085,"مصطفى4",null,null,null,null,null,null,null,null,null,null,null,null,null,null,null,null,null,null,null,null,null,null,"عبد الله"]
[{"$f":"IF(D20=\"\",\"\",SUBTOTAL(3,$D$4:D20))","v":17},5017,1090,"مصطفى5",null,null,null,null,null,null,null,null,null,null,null,null,null,null,null,null,null,null,null,null,null,null,"مصطفى"]
[{"$f":"IF(D21=\"\",\"\",SUBTOTAL(3,$D$4:D21))","v":18},5018,1095,"مصطفى6",null,null,null,null,null,null,null,null,null,null,null,null,null,null,null,null,null,null,null,null,null,null,"حسين"]
[{"$f":"IF(D22=\"\",\"\",SUBTOTAL(3,$D$4:D22))","v":19},5019,1100,"مصطفى1",null,null,null,null,null,null,null,null,null,null,null,null,null,null,null,null,null,null,null,null,null,null,"عدنان"]
[{"$f":"IF(D23=\"\",\"\",SUBTOTAL(3,$D$4:D23))","v":20},5020,1105,"مصطفى2",null,null,null,null,null,null,null,null,null,null,null,null,null,null,null,null,null,null,null,null,null,null,"محمد"]
[{"$f":"IF(D24=\"\",\"\",SUBTOTAL(3,$D$4:D24))","v":21},5021,1110,"مصطفى3",null,null,null,null,null,null,null,null,null,null,null,null,null,null,null,null,null,null,null,null,null,null,"طارق"]
[{"$f":"IF(D25=\"\",\"\",SUBTOTAL(3,$D$4:D25))","v":22},5022,1115,"مصطفى4",null,null,null,null,null,null,null,null,null,null,null,null,null,null,null,null,null,null,null,null,null,null,"عبد الله"]
[{"$f":"IF(D26=\"\",\"\",SUBTOTAL(3,$D$4:D26))","v":23},5023,1120,"مصطفى5",null,null,null,null,null,null,null,null,null,null,null,null,null,null,null,null,null,null,null,null,null,null,"مصطفى"]
[{"$f":"IF(D27=\"\",\"\",SUBTOTAL(3,$D$4:D27))","v":24},5024,1125,"مصطفى6",null,null,null,null,null,null,null,null,null,null,null,null,null,null,null,null,null,null,null,null,null,null,"حسين"]

{"sheet":"1","index":1,"n_rows":8,"n_cols":5,"rows_kept":8,"cut":false,"hidden":false,"merged":[]}
[]
[]
["ت","رقم الفاتورة","رقم الحساب","المورد","اسم الزبون"]
[1,5001,1010,"مصطفى1","محمد"]
[2,5002,1015,"مصطفى2","محمد"]
[3,5008,1045,"مصطفى2","محمد"]
[4,5014,1075,"مصطفى2","محمد"]
[5,5020,1105,"مصطفى2","محمد"]

{"sheet":"2","index":2,"n_rows":7,"n_cols":5,"rows_kept":7,"cut":false,"hidden":false,"merged":[]}
[]
[]
["ت","رقم الفاتورة","رقم الحساب","المورد","اسم الزبون"]
[1,5003,1020,"مصطفى3","طارق"]
[2,5009,1050,"مصطفى3","طارق"]
[3,5015,1080,"مصطفى3","طارق"]
[4,5021,1110,"مصطفى3","طارق"]

{"sheet":"3","index":3,"n_rows":7,"n_cols":5,"rows_kept":7,"cut":false,"hidden":false,"merged":[]}
[]
[]
["ت","رقم الفاتورة","رقم الحساب","المورد","اسم الزبون"]
[1,5004,1025,"مصطفى4","عبد الله"]
[2,5010,1055,"مصطفى4","عبد الله"]
[3,5016,1085,"مصطفى4","عبد الله"]
[4,5022,1115,"مصطفى4","عبد الله"]

{"sheet":"4","index":4,"n_rows":7,"n_cols":5,"rows_kept":7,"cut":false,"hidden":false,"merged":[]}
[]
[]
["ت","رقم الفاتورة","رقم الحساب","المورد","اسم الزبون"]
[1,5005,1030,"مصطفى5","مصطفى"]
[2,5011,1060,"مصطفى5","مصطفى"]
[3,5017,1090,"مصطفى5","مصطفى"]
[4,5023,1120,"مصطفى5","مصطفى"]

{"sheet":"5","index":5,"n_rows":7,"n_cols":5,"rows_kept":7,"cut":false,"hidden":false,"merged":[]}
[]
[]
["ت","رقم الفاتورة","رقم الحساب","المورد","اسم الزبون"]
[1,5006,1035,"مصطفى6","حسين"]
[2,5012,1065,"مصطفى6","حسين"]
[3,5018,1095,"مصطفى6","حسين"]
[4,5024,1125,"مصطفى6","حسين"]

{"sheet":"6","index":6,"n_rows":6,"n_cols":5,"rows_kept":6,"cut":false,"hidden":false,"merged":[]}
[]
[]
["ت","رقم الفاتورة","رقم الحساب","المورد","اسم الزبون"]
[1,5007,1040,"مصطفى1","عدنان"]
[2,5013,1070,"مصطفى1","عدنان"]
[3,5019,1100,"مصطفى1","عدنان"]